{"text_format":"1","workbook":"xlsx","n_sheets":4,"sheets":["Hlavná tabul'ka","Tabuľka indexácie","Pokyny k hlavnej tabuľke "," "],"not_rendered":{"charts":0,"images":11,"macros":1,"external_links":0,"defined_names":5,"comments":3,"pivot_tables":0},"unopened":[],"bounds":{"document_bytes":16777216,"sheet_cells":100000,"rows_first":2000,"rows_last":500,"rows_between":2000,"halvings":0,"cell_chars":16384,"cell_head_chars":4096},"cells_cut":0,"cells_raw":0,"read":"whole","date_system":"1900"}

{"sheet":"Hlavná tabul'ka","index":0,"n_rows":72,"n_cols":6,"rows_kept":72,"cut":false,"hidden":false,"merged":[[10,3,10,5],[10,0,10,2],[46,0,48,0],[46,1,48,1],[46,2,48,2],[46,3,48,3],[46,4,48,4],[45,0,45,1],[23,0,23,5],[24,1,24,2],[24,3,24,4],[25,0,27,0],[25,1,27,1],[25,2,27,2],[25,3,27,3],[25,4,27,4],[5,0,5,2],[5,3,5,5],[6,10,6,11],[8,10,8,11],[9,0,9,2],[8,0,8,2],[8,3,8,5],[9,3,9,5],[70,0,70,5],[71,0,84,5],[44,0,44,4],[63,0,68,5],[62,0,62,5],[0,0,0,5],[25,5,27,5],[12,0,17,0],[12,4,12,5],[13,4,13,5],[14,4,14,5],[15,4,15,5],[16,4,16,5],[17,3,17,4],[1,0,1,5],[3,0,3,5],[4,0,4,5],[6,0,6,2],[7,0,7,2],[6,3,6,5],[7,3,7,5]]}
[]
["Výpočet dlhu na osobu*"]
["escolher idoma/chosse language",null,"Idioma:","English"]
["* Pozri pokyny ako vyplniť formulár"]
["Rozhodnutie/súdny zmier/verejná listina"]
["Meno žiadateľa:"]
["Dátum (DD/MM/RRRR) a referenčné číslo rozhodnutia/ súdneho zmieru/verejnej listiny"]
["Názov súdu/príslušného orgánu pôvodu:"]
["Meno odporcu:"]
["Osoba, ktorá má nárok na výživné:"]
["Referenčné číslo žiadosti:"]
[]
["Mena uvedená v rozhodnutí/ súdnom zmiere/vo verejnej listine            ",null,"    euro (EUR)","  ","lev (BGN)"]
[null,null,"    česká koruna (CZK)",null,"chorvátska kuna (HRK)  "]
[null,null,"    forint (HUF)",null,"litovský litas (LTL)"]
[null,null,"    poľský zlotý  (PLN) ",null,"rumunský lei (RON)"]
[null,null,"    švédska koruna (SEK)",null,"britská libra (GBP)"]
[null,null,"    iné (spresnite)"]
[]
[]
[]
[]
[]
["Tabuľka ročnej sumy"]
["Rok",null,null,"Mena tabuľky     "]
["Mesiac","Stanovená mesačná suma","Sumy zaplatené povinným","Sumy zaplatené v inej mene","Sumy zaplatené z iných zdrojov","Dlžné sumy "]
[]
[]
["Január",null,null,null,null,{"$f":"B29-C29-E29","v":0}]
["Február",null,null,null,null,{"$f":"B30-C30-E30","v":0}]
["Marec",null,null,null,null,0]
["Apríl",null,null,null,null,0]
["Máj",null,null,null,null,0]
["Jún",null,null,null,null,0]
["Júl",null,null,null,null,0]
["August",null,null,null,null,0]
["September",null,null,null,null,0]
["Október",null,null,null,null,0]
["November",null,null,null,null,0]
["December",null,null,null,null,0]
["SPOLU",{"$f":"SUM(B29:B40)","v":0},{"$f":"SUM(C29:C40)","v":0},null,{"$f":"SUM(E29:E40)","v":0},0]
[]
[]
[]
["Súhrnná tabuľka"]
["Mena tabuľky     "]
["Rok","Stanovená ročná suma","Sumy zaplatené povinným","Sumy zaplatené z iných zdrojov","Dlžné sumy "]
[]
[]
[null,null,null,null,{"$f":"B50-C50-D50","v":0}]
[null,null,null,null,0]
[null,null,null,null,0]
[null,null,null,null,0]
[null,null,null,null,0]
[null,null,null,null,0]
[null,null,null,null,0]
[null,null,null,null,0]
[null,null,null,null,0]
[null,null,null,null,0]
["SPOLU",{"$f":"SUM(B50:B59)","v":0},{"$f":"SUM(C50:C59)","v":0},{"$f":"SUM(D50:D59)","v":0},0]
[]
[]
["Iné relevantné informácie - vyplní dožadujúci ústredný orgán"]
[]
[]
[]
[]
[]
[]
[]
["                                  Tabuľka indexácie"]
["\n\nV: ……………………………...…………. dňa ………………...……...…………... (dd/mm/rrrr)\n\nPodpis žiadateľa: ……………………………………………………………………………..................…...............\n\na/alebo v prípade potreby\n\nmeno a podpis oprávnenej osoby/názov a podpis oprávneného orgánu z dožadujúceho členského štátu, ktorá/ktorý vyplní formulár v mene žiadateľa:   ……........…………………….............................................……...................................\n…………………………………………………………...……………..............................................…........................…"]

{"sheet":"Tabuľka indexácie","index":1,"n_rows":33,"n_cols":15,"rows_kept":33,"cut":false,"hidden":false,"merged":[[4,6,5,6],[30,1,31,5],[0,0,0,14],[1,0,1,14],[4,9,4,14],[5,0,5,1],[3,6,3,7],[3,2,3,4],[6,0,28,1],[4,3,5,3]]}
["Tabuľka indexácie"]
["(na výpočet indexovanej sumy)"]
[]
[null,null,"Nástroj automatického výpočtu",null,null,null,"Súhrnná miera indexácie"]
[null,null,"Rok","Indexácia","Suma",null,"Rok","Členský štát",null,"Zodpovedný subjekt:",{"$f":"VLOOKUP(idioma,trad_v,26,FALSE)","v":{"$error":"#REF!"}},{"$f":"VLOOKUP(idioma,trad_v,26,FALSE)","v":{"$error":"#REF!"}},{"$f":"VLOOKUP(idioma,trad_v,26,FALSE)","v":{"$error":"#REF!"}},{"$f":"VLOOKUP(idioma,trad_v,26,FALSE)","v":{"$error":"#REF!"}},{"$f":"VLOOKUP(idioma,trad_v,26,FALSE)","v":{"$error":"#REF!"}}]
["Stanovená mesačná suma výživného* ",null,2000,null,100,null,{"$f":"VLOOKUP(idioma,trad_v,7,FALSE)","v":{"$error":"#REF!"}},"Celkový súčet"]
["Aktualizovaná stanovená mesačná suma",null,{"$f":"C6+1","v":2001},{"$f":"VLOOKUP(C7-1,$G$7:$H$29,2)","v":0},{"$f":"E6+(E6*D7)","v":100},null,1992]
[null,null,{"$f":"C7+1","v":2002},{"$f":"VLOOKUP(C8-1,$G$7:$H$29,2)","v":0},100,null,1993]
[null,null,2003,{"$f":"VLOOKUP(C9-1,$G$7:$H$29,2)","v":0},100,null,1994]
[null,null,2004,0,100,null,1995]
[null,null,2005,0,100,null,1996]
[null,null,2006,0,100,null,1997]
[null,null,2007,0,100,null,1998]
[null,null,2008,0,100,null,1999]
[null,null,2009,0,100,null,2000]
[null,null,2010,0,100,null,2001]
[null,null,2011,0,100,null,2002]
[null,null,2012,0,100,null,2003]
[null,null,2013,0,100,null,2004]
[null,null,2014,0,100,null,2005]
[null,null,2015,0,100,null,2006]
[null,null,2016,0,100,null,2007]
[null,null,2017,0,100,null,2008]
[null,null,2018,0,100,null,2009]
[null,null,2019,0,100,null,2010]
[null,null,2020,0,100,null,2011]
[null,null,2021,0,100,null,2012]
[null,null,2022,0,100,null,2013]
[null,null,2023,0,100,null,2014]
[]
[null,"* Uveďte rok a sumu výživného alebo stanovenú hodnotu uvedenú v minuloročnej „tabuľke ročnej sumy“."]
[]
[null,"Táto tabuľka indexácie slúži iba ako príklad, keďže členské štáty si musia vytvoriť svoju vlastnú doplňujúcu tabuľku a vzorce, ktoré zodpovedajú ich systému výpočtu indexácie. "]

{"sheet":"Pokyny k hlavnej tabuľke ","index":2,"n_rows":79,"n_cols":1,"rows_kept":79,"cut":false,"hidden":false,"merged":[[86,0,86,8],[28,0,28,8],[78,0,78,8],[79,0,79,8],[45,0,45,8],[65,0,65,8],[77,0,77,8],[76,0,76,8],[63,0,63,8],[67,0,67,8],[66,1,66,9],[49,0,49,8],[44,0,44,8],[47,0,47,8],[46,0,46,8],[0,0,0,8],[12,0,12,8],[11,0,11,8],[16,0,16,8],[1,0,1,8],[13,0,13,8],[14,0,14,8],[15,0,15,8],[27,0,27,8],[26,0,26,8],[25,0,25,8],[24,0,24,8],[22,0,22,8]]}
["Pokyny ako vyplniť hlavnú tabuľku"]
["Tento formulár nie je povinný. Môže ho vyplniť žiadateľ a/alebo akákoľvek oprávnená osoba/akýkoľvek oprávnený orgán z dožadujúceho členského štátu, ktorá/ktorý vyplní formulár v mene žiadateľa. Možno ho vyplniť elektronicky alebo na papieri, vo formáte Excel alebo PDF."]
[]
[]
["1."]
["2."]
["3."]
["4."]
["5."]
["6."]
[]
["1. Uveďte meno žiadateľa, t. j. fyzickej osoby/verejného subjektu, ktorá/ktorý žiada o zaplatenie výživného vo svojom mene."]
["2. Uveďte dátum a referenčné číslo rozhodnutia, súdneho zmieru alebo verejnej listiny, na ktorých sa zakladá výpočet dlhu. Ak je výpočet dlhu založený na viac ako jednom rozhodnutí, súdnom zmieri alebo viac ako jednej verejnej listine, uveďte dátum a referenčné číslo všetkých rozhodnutí, súdnych zmierov alebo verejných listín, a to tak, že rozšírite kolónku prípadne použijete viac kolóniek."]
["3. Uveďte názov súdu alebo iného príslušného orgánu pôvodu.  Ak je zapojených viac súdov alebo príslušných orgánov (pozri bod 2), uveďte názvy všetkých v súlade s bodom 2 , a to tak že rozšírite kolónku prípadne použijete viac kolóniek."]
["4. Uveďte meno odporcu (osoba, proti ktorej je podaná príslušná žiadosť vo veci výživného)."]
["5. Uveďte meno osoby, pre ktorú sa žiada o zaplatenie dlžného výživného.  Pre každú osobu, ktorá má nárok na  výživné, vyplňte samostatný formulár."]
["6. Uveďte referenčné číslo žiadosti (dožadujúci ústredný orgán)."]
[]
["7."]
[]
[]
[]
["7. Uveďte menu, v ktorej je stanovená a registrovaná vyživovacia povinnosť (t. j. menu, ktorá je uvedená v rozhodnutí, súdnom zmiere alebo vo verejnej listine). Pokiaľ sa kedykoľvek pri vyplňovaní formulára zmenila mena uvedená v rozhodnutí, súdnom zmieri alebo vo verejnej listine v štáte pôvodu, odporúča sa vložiť do každej tabuľky ročnej sumy sumu v mene, v ktorej bola zaplatená, tak aby sa za každý rok získal automatický výpočet dlhu v mene platnej pre daný rok.  Potom v súhrnnej tabuľke prepočítajte výsledky na novú menu používanú v čase vyplňovania formulára, tak aby celkový súčet bol v uvedenej mene.  V takom prípade sa odporúča uviesť ďalšie vysvetlivky v kolónke „Iné relevantné informácie“.  "]
["8."]
["8. Uveďte kalendárny rok, na ktorý sa vzťahuje tabuľka ročnej sumy;  vyplňte toľko tabuliek, koľko je potrebné na celé obdobie, počas ktorého sa nahromadili dlžné sumy (t. j. za každý kalendárny rok), počínajúc prvým rokom neplatenia a končiac posledným rokom. "]
["Pre pridanie ďalších tabuliek ročnej sumy použite prvky programu MS Excel:"]
[" kliknutím na tlačidlo (musia byť povolené makrá)    "]
["alebo "]
["1.  vyberte tabuľku ročnej sumy a jeden ďalší riadok použitím ľavého tlačidla myši a posúvajte sa po číslach riadkov (napr. z riadku 21 na riadok 39). Je dôležité označovať skôr riadky než len políčka, pretože z dôvodu ochrany súboru možno kopírovať a vkladať iba riadky; 2. kliknite na pravé tlačidlo myši a vyberte možnosť Kopírovať; 3. kliknite na nasledujúce číslo riadku (riadok 40) na ľavej strane pod označenou časťou; 4. kliknite na pravé tlačidlo myši a vyberte možnosť Vložiť skopírované políčka; 5. objaví sa ďalšia prázdna tabuľka ročnej sumy, v ktorej už budú zahrnuté vzorce. Pokiaľ potrebujete viac tabuliek ročnej sumy, opakujte kroky 1 až 4."]
[]
["9."]
[]
[]
[]
[]
[]
[]
[]
[]
[]
[]
[]
[]
["10."]
["9. Tabuľka vypočíta „dlžné sumy“ automaticky s použitím údajov vložených do stĺpcov (okrem súm zaplatených v inej mene, ktoré sú uvedené iba orientačne)."]
["V prípade potreby uveďte v kolónkach príslušné sumy; pokiaľ to nie je relevantné,  nechajte kolónku prázdnu.  Nie všetky kolónky/stĺpce sa musia použiť vo všetkých prípadoch.  \n „Stanovená mesačná suma“: uveďte za každý mesiac sumu uvedenú v rozhodnutí, súdnom zmieri alebo vo verejnej listine.\n „Sumy zaplatené povinným“: uveďte sumy skutočne uhradené povinným. Pokiaľ suma nezodpovedá mesačnej sume stanovenej na daný mesiac, konečný výpočet ukáže rozdiel.  V prípade mesiacov, ktorých sa týka preplatok, ignorujte rozdiel v stĺpci „dlžné sumy“. Celkový dlh sa ukáže v súhrnnej tabuľke.  \n„Sumy zaplatené v iných menách“: uveďte čiastočné alebo celé platby vykonané povinným v mene inej, ako je mena uvedená v rozhodnutí, súdnom zmieri alebo vo verejnej listine. Uveďte odkaz na menu, v ktorej bola platba vykonaná (napr. 1 000 CZK/HUF/PLN atď.), túto sumu prepočítajte na menu uvedenú v tabuľke, uveďte výmenný kurz použitý v stĺpci „Sumy zaplatené v iných menách“ a výsledok prepočtu zapíšte do stĺpca „Sumy zaplatené povinným“.  Tento mesačný zápis „súm zaplatených v iných menách“ môže byť pre určitých žiadateľov užitočný, pretože vysvetľuje čísla uvedené v stĺpci „sumy zaplatené povinným“."]
["„Sumy zaplatené z iných zdrojov“: uveďte všetky platby vykonané verejnými subjektmi alebo orgánmi inými, ako je povinný.  Tento stĺpec umožňuje žiadateľovi alebo orgánu uvádzať všetky platby, ktoré nevykonal povinný, ale iný orgán, úrad alebo agentúra (zvyčajne dávky poskytované miesto výživného).  Tieto platby sa môžu vymáhať podaním samostatnej žiadosti. Ignorujte tento stĺpec, pokiaľ sa nevzťahuje na Váš prípad.  V prípade každého záznamu uveďte podrobnosti k „iným zdrojom“ v kolónke „Iné relevantné informácie“ na konci tabuľky.  Tento stĺpec nevypĺňajte, pokiaľ je žiadateľom verejný subjekt, pretože v takom prípade neexistuje iný zdroj (teda „iný“ než žiadateľ).  Sumy v tomto stĺpci nie sú zahrnuté do žiadosti o vymáhanie a odpočítajú sa od „stanovenej mesačnej sumy“."]
["„Dlžné sumy“: v tomto stĺpci sa za každý mesiac ukáže automaticky vypočítaný rozdiel medzi stĺpcom „stanovená mesačná suma“, „sumy zaplatené povinným“ a „sumy zaplatené z iných zdrojov“.  Pokiaľ  platby nie sú pravidelné alebo rovnaké, môže sa v niektorých mesiacoch objaviť preplatok a v niektorých nedoplatok vyživovacej povinnosti.  Súhrnná tabuľka však ukáže skutočný rozdiel bez ohľadu na občasné preplatky alebo nedoplatky v období, za ktoré sa nahromadil dlh."]
[]
["10. Do posledného riadku tabuľky ročnej sumy označeného ako „spolu“ nevkladajte žiadnu sumu, pretože tá sa objaví automaticky. "]
[]
[]
[]
["11."]
[]
[]
[]
[]
[]
[]
[]
[]
[]
["11. V prvom stĺpci uveďte každý rok, za ktorý sa vyplnila tabuľka ročných súm.  V stĺpci označenom ako „sumy“, uveďte sumy uvedené v riadkoch tabuliek ročných súm označených ako „spolu“. Stĺpec označený ako „sumy zaplatené v iných menách“ tu nie je zahrnutý, pretože slúži výlučne na informatívne účely."]
["12."]
["12. Uveďte akékoľvek ďalšie relevantné informácie, ktoré nebolo možné uviesť v predchádzajúcich kolónkach. "]
["13."]
["13. V prípade, že sa použije indexácia a pripojí sa tabuľka indexácie, označte štvorček a v stĺpci „stanovená mesačná suma“ uveďte indexové sumy na každé obdobie indexácie (stanovené vnútroštátnymi právnymi predpismi v členskom štáte). V tomto prípade sa môže stanovená mesačná suma meniť od jedného obdobia k druhému. V doplňujúcej tabuľke uveďte metódu výpočtu revidovanej sumy a vnútroštátny právny predpis, na základe ktorého sa vykonáva indexácia."]
["14."]
["15."]
[]
["16."]
[]
[]
[]
[]
["14. Uveďte miesto a dátum podpisu."]
["15. Ak tabuľku vyplnil žiadateľ, podpíše sa tu."]
["16. Ak tabuľku nevyplnil žiadateľ, uveďte meno a podpis oprávnenej osoby/názov a podpis oprávneného orgánu. V tomto prípade by sa vo formulári mali uviesť aj dôveryhodné informácie o zdroji údajov (úradný záznam alebo vyhlásenie žiadateľa)."]

{"sheet":" ","index":3,"n_rows":19,"n_cols":6,"rows_kept":19,"cut":false,"hidden":false,"merged":[[1,0,1,5],[3,0,5,0],[3,1,5,1],[3,2,5,2],[3,3,5,3],[3,4,5,4],[3,5,5,5],[2,1,2,2],[2,3,2,4]]}
[]
["Tabuľka ročnej sumy"]
["rok",null,null,"mena tabuľky     "]
["mesiac","stanovená mesačná suma","sumy zaplatené povinným","sumy zaplatené v inej mene","sumy zaplatené prostredníctvom iných zdrojov","dlhy"]
[]
[]
["január",null,null,null,null,{"$f":"B7-C7-E7","v":0}]
["február",null,null,null,null,0]
["marec",null,null,null,null,0]
["apríl",null,null,null,null,0]
["máj",null,null,null,null,0]
["jún",null,null,null,null,0]
["júl",null,null,null,null,0]
["august",null,null,null,null,0]
["september",null,null,null,null,0]
["október",null,null,null,null,0]
["november",null,null,null,null,0]
["december",null,null,null,null,0]
["SPOLU",{"$f":"SUM(B7:B18)","v":0},{"$f":"SUM(C7:C18)","v":0},null,{"$f":"SUM(E7:E18)","v":0},0]